{"text_format":"1","workbook":"xlsx","n_sheets":12,"sheets":["Portada","Curso","Foto","Datos personales","Salud","Curriculum","Estudios oficiales","Form. Tecnica","Observaciones","Menores","Tablas","Resumen"],"not_rendered":{"charts":0,"images":2,"macros":1,"external_links":0,"defined_names":0,"comments":0,"pivot_tables":0},"unopened":[],"bounds":{"document_bytes":16777216,"sheet_cells":100000,"rows_first":2000,"rows_last":500,"rows_between":2000,"halvings":0,"cell_chars":16384,"cell_head_chars":4096},"cells_cut":0,"cells_raw":0,"read":"whole","date_system":"1900"}

{"sheet":"Portada","index":0,"n_rows":28,"n_cols":1,"rows_kept":28,"cut":false,"hidden":false,"merged":[]}
[]
[]
[]
[]
[]
[]
[]
[]
[]
[]
[]
[]
[]
[]
[]
["ESCUELA CANTABRA DE ALTA MONTAÑA"]
["Federación Cantabra de Deportes de Montaña y Escalada"]
[]
[]
["Solicitud de inscripción en el curso"]
[{"$f":"Curso!B2","v":"18S201"}]
[{"$f":"Curso!B3","v":"Esqui de montaña nivel 2"}]
[{"$f":"CONCATENATE('Datos personales'!B2,\", \",'Datos personales'!B3)","v":", "}]
[]
["Instrucciones."]
["Cumplimenta los datos de todas las pestañas"]
["Los rótulos en azul indican que existe lista desplagable de opciones"]
["Los menores de edad deberán cumplimentar y entrega la ficha \"Menores\""]

{"sheet":"Curso","index":1,"n_rows":4,"n_cols":2,"rows_kept":4,"cut":false,"hidden":false,"merged":[]}
["Datos del curso en que se inscribe"]
["Códico","18S201"]
["Denominación","Esqui de montaña nivel 2"]
["Fecha","2018-02-22"]

{"sheet":"Foto","index":2,"n_rows":6,"n_cols":1,"rows_kept":6,"cut":false,"hidden":false,"merged":[]}
[]
[]
[]
[]
["Formato JPG máximo 200 Kb."]
["Si tienes dificultades para insertar la foto adjuntala en fichero aparte"]

{"sheet":"Datos personales","index":3,"n_rows":25,"n_cols":3,"rows_kept":25,"cut":false,"hidden":false,"merged":[]}
["Dato","Valor","Aclaraciones"]
["Apellidos"]
["Nombre"]
["DNI",null,"Solo números"]
["Letra DNI"]
["Fecha nacimiento",null,{"$f":"IF(B6=\"\",\"\",(TODAY()-B6)/365)","v":""}]
["Domicilio"]
["Localidad"]
["Provincia","CANTABRIA","Seleccionar de la lista"]
["Código Postal"]
["Teléfono 1",null,"Teléfono de contacto preferente"]
["Descripción Tlf. 1",null,"Indicar móvil, casa, trabajo, etc."]
["Teléfono 2"]
["Descripción Tlf. 2",null,"Indicar móvil, casa, trabajo, etc."]
["Teléfono 3"]
["Descripción Tlf. 3",null,"Indicar móvil, casa, trabajo, etc."]
["Teléfono 4"]
["Descripción Tlf. 4",null,"Indicar móvil, casa, trabajo, etc."]
["e-mail 1",null,"Dirección de contacto preferente"]
["Descripción e-mail 1",null,"Indicar casa, trabajo, etc."]
["e-mail 2"]
["Descripción e-mail 2",null,"Indicar casa, trabajo, etc."]
["Fax"]
["Descripción fax",null,"Indicar casa, trabajo, etc."]
["Club",null,"Seleccionar de la lista"]

{"sheet":"Salud","index":4,"n_rows":11,"n_cols":1,"rows_kept":11,"cut":false,"hidden":false,"merged":[]}
["Grupo sanguíneo"]
["Factor RH"]
["Defectos ópticos y oculares"]
["Lesiones o defectos aparato locomotor"]
["Lesiones o problemas cardiovasculares o pulmonares"]
["Enfermedades de la piel y alergias"]
["Lesiones o defectos del aparato digestivo, urinario y excretor"]
["Diabetes, epilepsia, vértigo"]
["Congelaciones, amputaciones, intervenciones quirúrgicas, etc"]
["Vacunas recibidas"]
["Otros datos médicos de interés"]

{"sheet":"Curriculum","index":5,"n_rows":2,"n_cols":8,"rows_kept":2,"cut":false,"hidden":false,"merged":[]}
["Incluir actividad deportiva, concursos, competiciones, etc., mas significativa"]
["Fecha","Macizo/Lugar","Monte","Via/Recorrido","Altitud","Desnivel","Dificultad","Observaciones"]

{"sheet":"Estudios oficiales","index":6,"n_rows":2,"n_cols":6,"rows_kept":2,"cut":false,"hidden":false,"merged":[]}
["Indicar en orden cronológico los estudios realizados o en realización (E.G.B., Formación Profesional, Bachillerato, Técnicos o Universitarios). Especificando titulación obtenida o nivel alcanzado."]
["Año","Centro","Rama/especialidad","Titulo ","Duración","Unidad"]

{"sheet":"Form. Tecnica","index":7,"n_rows":2,"n_cols":5,"rows_kept":2,"cut":false,"hidden":false,"merged":[]}
["Indica la formación recibida en materias relacionadas con la montaña, el deporte, pedagogia. Cursos, seminarios, etc."]
["Año","Centro","Titulo ","Duración","Unidad"]

{"sheet":"Observaciones","index":8,"n_rows":1,"n_cols":1,"rows_kept":1,"cut":false,"hidden":false,"merged":[]}
["Indicar cualquier consideración adicional que se quiera hacer constar en la ficha personal."]

{"sheet":"Menores","index":9,"n_rows":25,"n_cols":4,"rows_kept":25,"cut":false,"hidden":false,"merged":[[4,2,4,6],[24,0,26,6],[7,2,7,6],[12,2,12,6],[16,2,16,3],[18,2,22,4]]}
["Escuela Cántabra de Alta Montaña"]
[]
["Autorización paterna para la realización del curso"]
[]
["Curso:",null,{"$f":"Curso!B3","v":"Esqui de montaña nivel 2"}]
[]
["Datos del menor"]
["Nombre y Apellidos:",null,{"$f":"CONCATENATE('Datos personales'!B3,\" \",'Datos personales'!B2)","v":" "}]
[]
["Edad:",null,{"$f":"IF('Datos personales'!B6=\"\",\"\",(TODAY()-'Datos personales'!B6)/365)","v":""},"años"]
[]
["Datos del padre o tutor"]
["Nombre y Apellidos"]
[]
["Autorizo a mi hijo/tutorizado a la realización del curso arriba indicado"]
[]
["Fecha:",null,{"$f":"TODAY()","v":"2018-01-21"}]
[]
["Firma del Padre o tutor"]
[]
[]
[]
[]
[]
["El presente documento deberá ser cumplimentado y entregado en persona por el padre o tutor al director del curso en el momento de su inicio."]

{"sheet":"Tablas","index":10,"n_rows":84,"n_cols":8,"rows_kept":84,"cut":false,"hidden":true,"merged":[]}
["Club","Provincia","Area docente","Categoria","Situación","Duración","Grupo sanguineo","RH"]
["Adala Montaña [ Grupo de Montaña ]","ALAVA","Media montaña","Colaborador","Activo","Horas","A","+"]
["ADEMCO [ Asociación Deportiva Espeleo y Montaña Colindres ]","ALBACETE","Escalada","Aspirante","Excedencia","Días","B","-"]
["ALTAI [ Grupo de Montaña ]","ALICANTE","Alta montaña","Monitor técnico",null,"Semanas","AB"]
["Anticlinal [ Club Deportivo Elemental ]","ALMERIA","Esqui de Montaña","Técnico deportivo nivel 2",null,"Meses","O"]
["Astillero [ Club de Montaña ]","ASTURIAS","Barrancos","Técnico deportivo nivel 3",null,"Años"]
["Bicicletas Meta [ CDE ]","AVILA","Dirección","Coordinador de área",null,"Creditos"]
["Buelna [ S.M. Sociedad Deportiva ]","BADAJOZ",null,"Director ecam"]
["Cacicedo [ Grupo de Montaña ]","BARCELONA"]
["Cajiga [ Club Deportivo Elemental ]","BURGOS"]
["Carceña [ Club Deportivo Elemental Senderismo ]","CACERES"]
["Castro [ Grupo de Montaña ]","CADIZ"]
["Ciclista Valle de Castañeda [ Club Deportivo Elemental ]","CANTABRIA"]
["Club Alcaparras [ S.M. Espeleo ]","CASTELLON"]
["Club Atlético Sorravides [ ]","CEUTA"]
["Club Atrote Team [ ]","CIUDAD REAL"]
["Club Ciclista Castreño [ ]","CORDOBA"]
["Club Ciclista Liébana [ ]","CORUÑA, A"]
["Club de Montaña Villa de Cabezón [ ]","CUENCA"]
["Cordada Bardales [ Club Deportivo Elemental de Montaña ]","GIRONA"]
["Curavacas [ Agrupación Deportiva ]","GRANADA"]
["De Anpe Monte Pindio [ Grupo de Montaña ]","GUADALAJARA"]
["El Argayu [ Club Deportivo Elemental ]","GUIPUZCOA"]
["El Beldeo [ Agrupación Deportiva ]","HUELVA"]
["El Camino [ Club Deportivo ]","HUESCA"]
["El Canchal [ Club Deportivo Elemental ]","ILLES BALEARS"]
["El Carlista [ Grupo de Montaña ]","JAEN"]
["El Cubio [ CDE ]","LEON"]
["El Musgoso [ Agrupación Deportiva ]","LUGO"]
["El Tejo [ Agrupación Deportiva ]","LLEIDA"]
["Empleados Caja Cantabria [ Club Deportivo Elemental ]","MADRID"]
["Free Up [ Club Deportivo ]","MALAGA"]
["Garma [ Grupo de Montaña ]","MELILLA"]
["Igollo [ S.M. Grupo Deportivo ]","MURCIA"]
["La Capia [ Asociación Deportiva Cultural ]","NAVARRA"]
["La Guia [ Club Deportivo ]","OURENSE"]
["La Jigüela [ Asociación ]","PALENCIA"]
["La Marea Azul [ ]","PALMAS, LAS"]
["La Milana [ Asociación Deportiva ]","PONTEVEDRA"]
["La Pica [ Club Deportivo ]","RIOJA, LA"]
["La Plomada [ Club Deportivo Elemental ]","S. C. TENERIFE"]
["La Vara [ Club Deportivo ]","SALAMANCA"]
["Lavalle [ Club ]","SEGOVIA"]
["Los Llambriales [ Club Deportivo Elemental ]","SEVILLA"]
["MASMARTESALSOL [ Club Deportivo ]","SORIA"]
["Mons Igetto [ Grupo de Montaña ]","TARRAGONA"]
["Mons Vindius [ Club ]","TERUEL"]
["NESTLE [ Seccion de Montaña C.D. ]","TOLEDO"]
["Oeste Cantabria (AMOC) [ Asociación ]","VALENCIA"]
["Orza [ Grupo de Montaña ]","VALLADOLID"]
["Ozono [ CDE ]","VIZCAYA"]
["Peña Luro [ Agrupación Deportiva ]","ZAMORA"]
["Peñajorao [ Club Deportivo ]","ZARAGOZA"]
["Peñas Arriba [ Club de Montaña y Senderismo ]"]
["Pico Cordel [ Club ]"]
["Picos de Europa [ S.M. Sociedad Deportiva ]"]
["Picos Xtreme Sport [ Club Deportivo Elemental ]"]
["Picu La Torre [ Grupo de Montaña ]"]
["Puente San Miguel [ S.D. ]"]
["Q3 [ Club Deportivo Elemental ]"]
["Runbike Altamira [ ]"]
["Saja Nansa [ Asociación Deportiva ]"]
["Sanander [ Club Deportivo Elemental ]"]
["Sierras Albas Scat [ Club Deportivo Elemental ]"]
["Sillaoso de Mazcuerras [ Club Deportivo ]"]
["Sindicato Unitario de Cantabria [ Club Deportivo Elemental ]"]
["Solvay [ Club Deportivo Esquí Montaña ]"]
["Suances [ Agrupación Deportiva de Montaña ]"]
["Tajahierro [ Club Alpino ]"]
["Tanos [ Club Deportivo Elemental Grupo Senderismo ]"]
["Torre del Friero [ Grupo de Montaña ]"]
["Torre la Vega [ Asociación Cultural de Senderismo ]"]
["Torreblanca [ Club de Montaña ]"]
["Torrelavega [ S.M. Sociedad Deportiva ]"]
["Trasmiera [ Asociación Espeleologica Montañesa ]"]
["Treparriscos [ Club de Montaña y Escalada ]"]
["Tres Mares [ Club Alpino ]"]
["U.G.T. [ Seccion de Montaña Ocio y Cultura ]"]
["U.S.O. Cantabria [ Grupo de Montaña ]"]
["Universidad de Cantabria [ S.M. Agrupación Deportiva ]"]
["Valle de Piélagos [ CDE ]"]
["Ventoso [ Club Alpino ]"]
["Visitación [ Club Deportivo Elemental ]"]
["Yonkis Montañeros [ CDE ]"]

{"sheet":"Resumen","index":11,"n_rows":2,"n_cols":42,"rows_kept":2,"cut":false,"hidden":true,"merged":[]}
["Apellidos","Nombre","DNI","Letra DNI","Fecha nacimiento","Domicilio","Localidad","Provincia","Código Postal","Teléfono 1","Descripción Tlf. 1","Teléfono 2","Descripción Tlf. 2","Teléfono 3","Descripción Tlf. 3","Teléfono 4","Descripción Tlf. 4","e-mail 1","Descripción e-mail 1","e-mail 2","Descripción e-mail 2","Fax","Descripción fax","Club","Cuenta bancaria","GS","RH","Opticos","Locomotor","Cardio","Piel","Digestivo","Diabetes","Congelaciones","Vacunas","Otros salud","Observaciones","Factualizado","Docente","Curso codigo","Curso denominación","Curso fecha"]
[{"$f":"IF('Datos personales'!B2=\"\",\"\",'Datos personales'!B2)","v":""},{"$f":"IF('Datos personales'!B3=\"\",\"\",'Datos personales'!B3)","v":""},{"$f":"IF('Datos personales'!B4=\"\",\"\",'Datos personales'!B4)","v":""},{"$f":"IF('Datos personales'!B5=\"\",\"\",'Datos personales'!B5)","v":""},{"$f":"IF('Datos personales'!B6=\"\",\"\",'Datos personales'!B6)","v":""},{"$f":"IF('Datos personales'!B7=\"\",\"\",'Datos personales'!B7)","v":""},{"$f":"IF('Datos personales'!B8=\"\",\"\",'Datos personales'!B8)","v":""},{"$f":"IF('Datos personales'!B9=\"\",\"\",'Datos personales'!B9)","v":"CANTABRIA"},{"$f":"IF('Datos personales'!B10=\"\",\"\",'Datos personales'!B10)","v":""},{"$f":"IF('Datos personales'!B11=\"\",\"\",'Datos personales'!B11)","v":""},{"$f":"IF('Datos personales'!B12=\"\",\"\",'Datos personales'!B12)","v":""},{"$f":"IF('Datos personales'!B13=\"\",\"\",'Datos personales'!B13)","v":""},{"$f":"IF('Datos personales'!B14=\"\",\"\",'Datos personales'!B14)","v":""},{"$f":"IF('Datos personales'!B15=\"\",\"\",'Datos personales'!B15)","v":""},{"$f":"IF('Datos personales'!B16=\"\",\"\",'Datos personales'!B16)","v":""},{"$f":"IF('Datos personales'!B17=\"\",\"\",'Datos personales'!B17)","v":""},{"$f":"IF('Datos personales'!B18=\"\",\"\",'Datos personales'!B18)","v":""},{"$f":"IF('Datos personales'!B19=\"\",\"\",'Datos personales'!B19)","v":""},{"$f":"IF('Datos personales'!B20=\"\",\"\",'Datos personales'!B20)","v":""},{"$f":"IF('Datos personales'!B21=\"\",\"\",'Datos personales'!B21)","v":""},{"$f":"IF('Datos personales'!B22=\"\",\"\",'Datos personales'!B22)","v":""},{"$f":"IF('Datos personales'!B23=\"\",\"\",'Datos personales'!B23)","v":""},{"$f":"IF('Datos personales'!B24=\"\",\"\",'Datos personales'!B24)","v":""},{"$f":"IF('Datos personales'!B25=\"\",\"\",'Datos personales'!B25)","v":""},null,{"$f":"IF(Salud!B1=\"\",\"\",Salud!B1)","v":""},{"$f":"IF(Salud!B2=\"\",\"\",Salud!B2)","v":""},{"$f":"IF(Salud!B3=\"\",\"\",Salud!B3)","v":""},{"$f":"IF(Salud!B4=\"\",\"\",Salud!B4)","v":""},{"$f":"IF(Salud!B5=\"\",\"\",Salud!B5)","v":""},{"$f":"IF(Salud!B6=\"\",\"\",Salud!B6)","v":""},{"$f":"IF(Salud!B7=\"\",\"\",Salud!B7)","v":""},{"$f":"IF(Salud!B8=\"\",\"\",Salud!B8)","v":""},{"$f":"IF(Salud!B9=\"\",\"\",Salud!B9)","v":""},{"$f":"IF(Salud!B10=\"\",\"\",Salud!B10)","v":""},{"$f":"IF(Salud!B11=\"\",\"\",Salud!B11)","v":""},{"$f":"IF(Observaciones!A2=\"\",\"\",Observaciones!A2)","v":""},{"$f":"AP2","v":"2018-02-22"},"Falso",{"$f":"IF(Curso!B2=\"\",\"\",Curso!B2)","v":"18S201"},{"$f":"IF(Curso!B3=\"\",\"\",Curso!B3)","v":"Esqui de montaña nivel 2"},{"$f":"IF(Curso!B4=\"\",\"\",Curso!B4)","v":"2018-02-22"}]